[Event "ETCC Women 2013"]
[Site "Warsaw"]
[Date "2013.11.15"]
[Round "7"]
[White "Reppen, Ellisiv"]
[Black "Stojanovic, Andjelija"]
[Result "1/2-1/2"]
[ECO "B60"]
[WhiteElo "2008"]
[BlackElo "2293"]
[PlyCount "101"]
[EventDate "2013.??.??"]
[EventCountry "POL"]
[WhiteTeam "Norway"]
[BlackTeam "Serbia"]
[WhiteTeamCountry "NOR"]
[BlackTeamCountry "SRB"]
[TimeControl "40/5400+30:1800+30"]

1. e4 {[%emt 0:00:00]} c5 {[%emt 0:00:00]} 2. Nf3 {[%emt 0:00:00]} Nc6 {[%emt
0:00:00]} 3. d4 {[%emt 0:00:00]} cxd4 {[%emt 0:00:00]} 4. Nxd4 {[%emt 0:00:00]}
Nf6 {[%emt 0:00:00]} 5. Nc3 {[%emt 0:00:11]} d6 {[%emt 0:01:10]} 6. Bg5 {[%emt
0:01:32]} Bd7 {[%emt 0:00:16]} 7. Be2 {[%emt 0:02:13]} Nxd4 {[%emt 0:04:52]} 8.
Qxd4 {[%emt 0:00:12]} Qa5 {[%emt 0:00:10]} 9. Bxf6 {[%emt 0:01:59]} gxf6 {
[%emt 0:00:09]} 10. O-O {[%emt 0:02:51]} Rc8 {[%emt 0:01:00]} 11. Rad1 {[%emt
0:04:15]} Qc5 {[%emt 0:03:54]} 12. Qxc5 {[%emt 0:02:55]} Rxc5 {[%emt 0:00:28]}
13. Rd5 {[%emt 0:01:24]} Rc8 {[%emt 0:31:33]} 14. Bb5 {[%emt 0:07:36]} a6 {
[%emt 0:04:05]} 15. Bxd7+ {[%emt 0:00:21]} Kxd7 {[%emt 0:00:02]} 16. Rfd1 {
[%emt 0:05:33]} h5 {[%emt 0:04:49]} 17. Ra5 {[%emt 0:05:25]} h4 {[%emt 0:02:05]
} 18. Rd3 {[%emt 0:05:39]} Bh6 {[%emt 0:14:57]} 19. Rh5 {[%emt 0:04:42]} b5 {
[%emt 0:04:37]} 20. a3 {[%emt 0:18:36]} Bg7 {[%emt 0:03:25]} 21. Rxh8 {[%emt 0:
01:21]} Bxh8 {[%emt 0:00:48]} 22. Rh3 {[%emt 0:02:08]} f5 {[%emt 0:00:56]} 23.
exf5 {[%emt 0:00:44]} Rc4 {[%emt 0:02:22]} 24. Kf1 {[%emt 0:01:55]} Kc6 {[%emt
0:08:17]} 25. Ke2 {[%emt 0:04:40]} a5 {[%emt 0:00:51]} 26. Kd2 {[%emt 0:03:02]}
Bf6 {[%emt 0:05:35]} 27. Rf3 {[%emt 0:02:36]} d5 {[%emt 0:06:22]} 28. g3 {
[%emt 0:03:47]} Bg5+ {[%emt 0:00:33]} 29. Kd1 {[%emt 0:01:49]} Bf6 {[%emt 0:00:
29]} 30. Rd3 {[%emt 0:03:29]} e6 {[%emt 0:00:34]} 31. fxe6 {[%emt 0:00:43]}
fxe6 {[%emt 0:00:02]} 32. Kd2 {[%emt 0:02:03]} b4 {[%emt 0:01:06]} 33. axb4 {
[%emt 0:00:26]} axb4 {[%emt 0:00:03]} 34. Nd1 {[%emt 0:00:47]} e5 {[%emt 0:00:
53]} 35. Ne3 {[%emt 0:06:09]} Rc5 {[%emt 0:00:02]} 36. Ng4 {[%emt 0:01:26]}
Bg5+ {[%emt 0:00:59]} 37. Kd1 {[%emt 0:00:16]} d4 {[%emt 0:00:34]} 38. Rb3 {
[%emt 0:00:54]} Kb5 {[%emt 0:00:25]} 39. f3 {[%emt 0:00:36]} hxg3 {[%emt 0:00:
29]} 40. hxg3 {[%emt 0:00:00]} Be7 {[%emt 0:00:00]} 41. Nf2 {[%emt 0:04:03]}
Kc4 {[%emt 0:00:36]} 42. Ne4 {[%emt 0:02:57]} Ra5 {[%emt 0:00:25]} 43. Nd2+ {
[%emt 0:03:03]} Kd5 {[%emt 0:00:39]} 44. Ke2 {[%emt 0:01:21]} Ra1 {[%emt 0:01:
51]} 45. Ne4 {[%emt 0:05:24]} Rb1 {[%emt 0:04:49]} 46. g4 {[%emt 0:02:06]} Rh1
{[%emt 0:05:55]} 47. Rd3 {[%emt 0:07:50]} Rh2+ {[%emt 0:00:20]} 48. Kd1 {[%emt
0:00:12]} Rh1+ {[%emt 0:00:30]} 49. Kd2 {[%emt 0:02:03]} Rb1 {[%emt 0:00:58]}
50. Rb3 {[%emt 0:01:10]} Kc4 {[%emt 0:06:55]} 51. Ke2 {[%emt 0:03:13]} 1/2-1/2

[Event "ETCC Women 2013"]
[Site "Warsaw"]
[Date "2013.11.15"]
[Round "7"]
[White "Revo, Tatiana"]
[Black "Messina, Roberta"]
[Result "0-1"]
[ECO "B90"]
[WhiteElo "2075"]
[BlackElo "2064"]
[PlyCount "82"]
[EventDate "2013.??.??"]
[EventCountry "POL"]
[WhiteTeam "Belarus"]
[BlackTeam "Italy"]
[WhiteTeamCountry "BLR"]
[BlackTeamCountry "ITA"]
[TimeControl "40/5400+30:1800+30"]

1. e4 {[%emt 0:00:00]} c5 {[%emt 0:00:00]} 2. Nf3 {[%emt 0:00:00]} d6 {[%emt 0:
00:00]} 3. d4 {[%emt 0:00:00]} cxd4 {[%emt 0:00:08]} 4. Nxd4 {[%emt 0:00:00]}
Nf6 {[%emt 0:00:14]} 5. Nc3 {[%emt 0:00:00]} a6 {[%emt 0:00:13]} 6. Be3 {[%emt
0:00:06]} e6 {[%emt 0:00:20]} 7. f3 {[%emt 0:00:07]} b5 {[%emt 0:00:17]} 8. Qd2
{[%emt 0:00:07]} Nbd7 {[%emt 0:00:29]} 9. g4 {[%emt 0:00:14]} Nb6 {[%emt 0:00:
31]} 10. a4 {[%emt 0:00:36]} Nc4 {[%emt 0:00:50]} 11. Bxc4 {[%emt 0:00:07]}
bxc4 {[%emt 0:00:06]} 12. a5 {[%emt 0:00:14]} Qc7 {[%emt 0:02:13]} 13. Na4 {
[%emt 0:02:31]} Rb8 {[%emt 0:00:53]} 14. O-O-O {[%emt 0:06:37]} Nd7 {[%emt 0:
02:19]} 15. g5 {[%emt 0:17:34]} Bb7 {[%emt 0:05:42]} 16. h4 {[%emt 0:08:13]} d5
{[%emt 0:08:37]} 17. h5 {[%emt 0:23:03]} Ba8 {[%emt 0:31:53]} 18. g6 {[%emt 0:
12:26]} Rb4 {[%emt 0:15:29]} 19. gxf7+ {[%emt 0:03:53]} Kxf7 {[%emt 0:00:19]}
20. Nb6 {[%emt 0:07:54]} Nxb6 {[%emt 0:05:17]} 21. Nxe6 {[%emt 0:00:25]} Kxe6 {
[%emt 0:04:48]} 22. Bxb6 {[%emt 0:00:09]} c3 {[%emt 0:16:14]} 23. exd5+ {[%emt
0:02:35]} Kf7 {[%emt 0:00:27]} 24. Bxc7 {[%emt 0:03:43]} cxd2+ {[%emt 0:00:06]}
25. Rxd2 {[%emt 0:00:06]} Be7 {[%emt 0:01:05]} 26. Rd3 {[%emt 0:01:54]} Bf6 {
[%emt 0:01:28]} 27. c3 {[%emt 0:00:29]} Rc4 {[%emt 0:00:19]} 28. d6 {[%emt 0:
03:07]} Ke6 {[%emt 0:01:21]} 29. b3 {[%emt 0:03:55]} Rxc3+ {[%emt 0:00:42]} 30.
Rxc3 {[%emt 0:00:42]} Bxc3 {[%emt 0:00:00]} 31. Kc2 {[%emt 0:00:05]} Bf6 {
[%emt 0:00:00]} 32. Re1+ {[%emt 0:00:32]} Kd7 {[%emt 0:00:00]} 33. f4 {[%emt 0:
02:07]} Re8 {[%emt 0:00:00]} 34. Rxe8 {[%emt 0:02:05]} Kxe8 {[%emt 0:00:00]}
35. Kd3 {[%emt 0:00:12]} Bf3 {[%emt 0:00:46]} 36. h6 {[%emt 0:00:04]} gxh6 {
[%emt 0:00:47]} 37. b4 {[%emt 0:00:32]} Kd7 {[%emt 0:01:19]} 38. Ke3 {[%emt 0:
00:50]} Bd5 {[%emt 0:00:32]} 39. Kd3 {[%emt 0:00:43]} h5 {[%emt 0:00:16]} 40.
Ke3 {[%emt 0:00:36]} h4 {[%emt 0:00:00]} 41. Kf2 {[%emt 0:00:29]} Bd4+ {[%emt
0:00:56]} 0-1

[Event "ETCC Women 2013"]
[Site "Warsaw"]
[Date "2013.11.15"]
[Round "7"]
[White "Schleining, Zoya"]
[Black "Stefanova, Antoaneta"]
[Result "1/2-1/2"]
[ECO "D15"]
[WhiteElo "2379"]
[BlackElo "2494"]
[PlyCount "92"]
[EventDate "2013.??.??"]
[EventCountry "POL"]
[WhiteTeam "Germany"]
[BlackTeam "Bulgaria"]
[WhiteTeamCountry "GER"]
[BlackTeamCountry "BUL"]
[TimeControl "40/5400+30:1800+30"]

1. d4 {[%emt 0:00:00]} d5 {[%emt 0:00:00]} 2. c4 {[%emt 0:00:00]} c6 {[%emt 0:
00:00]} 3. Nf3 {[%emt 0:00:12]} Nf6 {[%emt 0:00:00]} 4. Nc3 {[%emt 0:00:31]} a6
5. a4 {[%emt 0:00:52]} e6 {[%emt 0:02:51]} 6. Bg5 {[%emt 0:10:30]} Nbd7 {[%emt
0:00:19]} 7. e3 {[%emt 0:00:00]} Qa5 8. Qc2 Bb4 {[%emt 0:14:43]} 9. Nd2 {[%emt
0:00:00]} c5 {[%emt 0:24:19]} 10. Be2 {[%emt 0:00:32]} cxd4 {[%emt 0:02:39]}
11. exd4 {[%emt 0:00:15]} dxc4 {[%emt 0:00:27]} 12. Bf4 {[%emt 0:03:01]} Qb6 {
[%emt 0:07:41]} 13. Nxc4 {[%emt 0:13:02]} Qxd4 {[%emt 0:00:08]} 14. Bd6 {[%emt
0:08:37]} Bxd6 {[%emt 0:05:55]} 15. Rd1 {[%emt 0:00:07]} Qc5 {[%emt 0:06:30]}
16. Nxd6+ {[%emt 0:01:30]} Kf8 {[%emt 0:02:55]} 17. O-O {[%emt 0:01:58]} g6 {
[%emt 0:03:02]} 18. Rfe1 {[%emt 0:06:46]} Ne5 {[%emt 0:03:15]} 19. Qd2 {[%emt
0:06:15]} Kg7 {[%emt 0:06:45]} 20. Qf4 {[%emt 0:04:14]} Ned7 {[%emt 0:03:53]}
21. Bc4 {[%emt 0:03:33]} Rf8 {[%emt 0:01:29]} 22. Re3 {[%emt 0:09:31]} Nh5 {
[%emt 0:01:56]} 23. Qh4 {[%emt 0:02:47]} Ndf6 {[%emt 0:01:56]} 24. Be2 {[%emt
0:04:46]} g5 {[%emt 0:01:49]} 25. Qh3 {[%emt 0:05:17]} Nf4 {[%emt 0:00:12]} 26.
Qg3 {[%emt 0:02:14]} h6 {[%emt 0:00:32]} 27. h4 {[%emt 0:03:47]} Nxe2+ {[%emt
0:04:22]} 28. Rxe2 {[%emt 0:00:26]} Nh5 {[%emt 0:00:53]} 29. Qe5+ {[%emt 0:04:
53]} Qxe5 {[%emt 0:00:04]} 30. Rxe5 {[%emt 0:00:02]} Kg6 {[%emt 0:02:01]} 31.
hxg5 {[%emt 0:01:15]} hxg5 {[%emt 0:00:02]} 32. Nc4 {[%emt 0:01:13]} b5 {[%emt
0:02:50]} 33. axb5 {[%emt 0:01:02]} axb5 {[%emt 0:00:01]} 34. Rxb5 {[%emt 0:00:
58]} f6 {[%emt 0:00:27]} 35. Nb6 {[%emt 0:01:43]} Rb8 {[%emt 0:01:50]} 36. Nxc8
{[%emt 0:01:24]} Rfxc8 {[%emt 0:00:12]} 37. Rxb8 {[%emt 0:02:06]} Rxb8 {[%emt
0:00:01]} 38. Rd2 {[%emt 0:00:32]} g4 {[%emt 0:00:45]} 39. g3 {[%emt 0:01:58]}
f5 {[%emt 0:00:36]} 40. Kf1 {[%emt 0:00:00]} e5 {[%emt 0:00:00]} 41. Rd5 {
[%emt 0:02:44]} Rxb2 {[%emt 0:09:20]} 42. Rxe5 {[%emt 0:00:23]} f4 {[%emt 0:03:
30]} 43. gxf4 {[%emt 0:02:47]} Nxf4 {[%emt 0:00:10]} 44. Re4 {[%emt 0:06:50]}
Kf5 {[%emt 0:01:26]} 45. Rc4 {[%emt 0:01:03]} Rc2 {[%emt 0:04:49]} 46. Nd1 {
[%emt 0:01:20]} Rxc4 1/2-1/2

[Event "ETCC Women 2013"]
[Site "Warsaw"]
[Date "2013.11.15"]
[Round "7"]
[White "Seps, Monika"]
[Black "Franciskovic, Borka"]
[Result "1/2-1/2"]
[ECO "A46"]
[WhiteElo "2260"]
[BlackElo "2263"]
[PlyCount "111"]
[EventDate "2013.??.??"]
[EventCountry "POL"]
[WhiteTeam "Switzerland"]
[BlackTeam "Croatia"]
[WhiteTeamCountry "SUI"]
[BlackTeamCountry "CRO"]
[TimeControl "40/5400+30:1800+30"]

1. d4 {[%emt 0:00:00]} Nf6 {[%emt 0:00:00]} 2. Nf3 {[%emt 0:00:00]} e6 {[%emt
0:00:00]} 3. Bg5 {[%emt 0:00:00]} c5 {[%emt 0:01:32]} 4. e3 {[%emt 0:00:49]} h6
{[%emt 0:03:10]} 5. Bh4 {[%emt 0:00:28]} Be7 {[%emt 0:02:58]} 6. Bd3 {[%emt 0:
02:19]} cxd4 {[%emt 0:03:23]} 7. exd4 {[%emt 0:00:06]} b6 {[%emt 0:00:41]} 8.
O-O {[%emt 0:00:24]} O-O {[%emt 0:01:37]} 9. c4 {[%emt 0:02:18]} Bb7 {[%emt 0:
05:04]} 10. Nc3 {[%emt 0:00:10]} d5 {[%emt 0:04:49]} 11. Bxf6 {[%emt 0:00:18]}
Bxf6 {[%emt 0:01:54]} 12. cxd5 {[%emt 0:00:05]} exd5 {[%emt 0:05:51]} 13. Rc1 {
[%emt 0:13:27]} Nc6 {[%emt 0:09:46]} 14. Bb1 {[%emt 0:03:24]} Re8 {[%emt 0:11:
08]} 15. Qd3 {[%emt 0:03:38]} g6 {[%emt 0:00:17]} 16. Rfe1 {[%emt 0:05:51]} Qd7
{[%emt 0:07:13]} 17. Qd2 {[%emt 0:06:55]} Bg7 {[%emt 0:02:48]} 18. Bc2 {[%emt
0:09:37]} Rxe1+ {[%emt 0:06:53]} 19. Rxe1 {[%emt 0:00:05]} Re8 {[%emt 0:01:25]}
20. Rxe8+ {[%emt 0:07:30]} Qxe8 {[%emt 0:00:05]} 21. h4 {[%emt 0:01:57]} h5 {
[%emt 0:05:24]} 22. Ba4 {[%emt 0:05:18]} Qe6 {[%emt 0:04:15]} 23. Bxc6 {[%emt
0:05:25]} Bxc6 {[%emt 0:00:38]} 24. Qf4 {[%emt 0:00:15]} Bf6 {[%emt 0:08:55]}
25. Ne5 {[%emt 0:10:01]} Kg7 {[%emt 0:02:16]} 26. Kh2 {[%emt 0:06:40]} a5 {
[%emt 0:01:30]} 27. Ne2 {[%emt 0:03:13]} Bb5 {[%emt 0:02:44]} 28. Ng1 {[%emt 0:
00:40]} Bd7 {[%emt 0:01:53]} 29. Ngf3 {[%emt 0:02:04]} Qf5 {[%emt 0:01:00]} 30.
Qc1 {[%emt 0:05:22]} Bd8 {[%emt 0:01:10]} 31. Kg1 {[%emt 0:00:54]} f6 {[%emt 0:
00:49]} 32. Nxd7 {[%emt 0:00:49]} Qxd7 {[%emt 0:00:03]} 33. Qc2 {[%emt 0:02:41]
} Bc7 {[%emt 0:00:27]} 34. a4 {[%emt 0:00:12]} Bd6 {[%emt 0:00:49]} 35. b3 {
[%emt 0:01:16]} Bb4 {[%emt 0:00:53]} 36. g3 {[%emt 0:01:31]} Kf7 {[%emt 0:01:
09]} 37. Kg2 {[%emt 0:00:26]} Kg7 {[%emt 0:00:06]} 38. Kg1 {[%emt 0:01:11]} Kf7
{[%emt 0:00:18]} 39. Kg2 {[%emt 0:00:34]} Kg7 {[%emt 0:00:09]} 40. Qd3 {[%emt
0:00:00]} Kf7 {[%emt 0:00:00]} 41. Ng1 {[%emt 0:07:53]} Qe8 {[%emt 0:22:29]}
42. f3 {[%emt 0:05:32]} Qc6 {[%emt 0:04:37]} 43. Ne2 {[%emt 0:00:28]} Bd6 {
[%emt 0:00:23]} 44. g4 {[%emt 0:04:47]} hxg4 {[%emt 0:00:56]} 45. fxg4 {[%emt
0:00:01]} Kg7 {[%emt 0:03:32]} 46. Kf2 {[%emt 0:06:06]} Qc8 {[%emt 0:03:13]}
47. Qf3 {[%emt 0:01:13]} Qe6 {[%emt 0:00:46]} 48. Nc3 {[%emt 0:00:26]} Bb4 {
[%emt 0:00:33]} 49. Nxd5 {[%emt 0:01:41]} Be1+ {[%emt 0:01:05]} 50. Kg2 {[%emt
0:01:02]} Bxh4 {[%emt 0:00:18]} 51. Nf4 {[%emt 0:00:54]} Qe1 {[%emt 0:00:38]}
52. d5 {[%emt 0:01:06]} Qd2+ {[%emt 0:00:39]} 53. Kh3 {[%emt 0:00:43]} Bg5 {
[%emt 0:00:27]} 54. Ne6+ {[%emt 0:00:11]} Kf7 {[%emt 0:00:37]} 55. Nxg5+ {
[%emt 0:03:22]} Qxg5 {[%emt 0:00:04]} 56. Qe4 {[%emt 0:02:54]} 1/2-1/2

[Event "ETCC Women 2013"]
[Site "Warsaw"]
[Date "2013.11.15"]
[Round "7"]
[White "Shvayger, Yuliya"]
[Black "Olsarova, Tereza"]
[Result "1-0"]
[ECO "C45"]
[WhiteElo "2294"]
[BlackElo "2248"]
[PlyCount "81"]
[EventDate "2013.??.??"]
[EventCountry "POL"]
[WhiteTeam "Israel"]
[BlackTeam "Czech Republic"]
[WhiteTeamCountry "ISR"]
[BlackTeamCountry "CZE"]
[TimeControl "40/5400+30:1800+30"]

1. e4 {[%emt 0:00:00]} e5 {[%emt 0:00:00]} 2. Nf3 {[%emt 0:00:00]} Nc6 {[%emt
0:00:00]} 3. d4 {[%emt 0:00:44]} exd4 {[%emt 0:00:03]} 4. Nxd4 {[%emt 0:00:03]}
Bc5 {[%emt 0:00:12]} 5. Nb3 {[%emt 0:02:24]} Bb6 {[%emt 0:00:09]} 6. Nc3 {
[%emt 0:00:03]} d6 {[%emt 0:06:02]} 7. Qe2 {[%emt 0:03:10]} Be6 {[%emt 0:02:43]
} 8. Be3 {[%emt 0:02:58]} Nf6 {[%emt 0:05:13]} 9. Bxb6 {[%emt 0:06:48]} axb6 {
[%emt 0:00:27]} 10. O-O-O {[%emt 0:00:23]} Bxb3 {[%emt 0:08:53]} 11. cxb3 {
[%emt 0:00:24]} O-O {[%emt 0:00:11]} 12. a3 {[%emt 0:12:42]} Re8 {[%emt 0:05:
04]} 13. Qc2 {[%emt 0:00:13]} Qe7 {[%emt 0:03:24]} 14. f3 {[%emt 0:11:47]} Qe5
{[%emt 0:01:51]} 15. Bc4 {[%emt 0:07:07]} Na5 {[%emt 0:09:26]} 16. Nb5 {[%emt
0:10:06]} Red8 {[%emt 0:07:47]} 17. Nxc7 {[%emt 0:11:49]} Rac8 {[%emt 0:00:11]}
18. Nb5 {[%emt 0:00:05]} d5 {[%emt 0:03:22]} 19. exd5 {[%emt 0:00:37]} Nxd5 {
[%emt 0:05:26]} 20. Rhe1 {[%emt 0:06:08]} Qf6 {[%emt 0:07:14]} 21. Kb1 {[%emt
0:00:54]} g6 {[%emt 0:00:06]} 22. Na7 {[%emt 0:07:27]} Rc5 {[%emt 0:03:07]} 23.
Qd3 {[%emt 0:03:52]} Rd7 {[%emt 0:02:29]} 24. Ka1 {[%emt 0:03:44]} Qd8 {[%emt
0:07:09]} 25. Re4 {[%emt 0:05:58]} Rxc4 {[%emt 0:06:39]} 26. Rxc4 {[%emt 0:01:
16]} Nc3 {[%emt 0:00:54]} 27. Rxc3 {[%emt 0:00:56]} Rxd3 {[%emt 0:00:27]} 28.
Rdxd3 {[%emt 0:00:14]} Qg5 {[%emt 0:00:17]} 29. b4 {[%emt 0:00:30]} Nc6 {[%emt
0:00:48]} 30. Nxc6 {[%emt 0:00:08]} bxc6 {[%emt 0:00:01]} 31. g3 {[%emt 0:00:
24]} c5 {[%emt 0:01:47]} 32. bxc5 {[%emt 0:00:15]} bxc5 {[%emt 0:00:02]} 33. a4
{[%emt 0:00:45]} Kg7 {[%emt 0:00:28]} 34. Rc4 {[%emt 0:01:08]} Qe7 {[%emt 0:00:
57]} 35. Rdc3 {[%emt 0:00:09]} Qe2 {[%emt 0:00:25]} 36. a5 {[%emt 0:00:24]}
Qd1+ {[%emt 0:00:50]} 37. Ka2 {[%emt 0:00:09]} Qd5 {[%emt 0:00:05]} 38. Ka3 {
[%emt 0:00:17]} Qd1 {[%emt 0:01:04]} 39. Rxc5 {[%emt 0:01:55]} Qa1+ {[%emt 0:
00:45]} 40. Kb3 {[%emt 0:00:00]} Qd1+ {[%emt 0:00:00]} 41. Ka2 {[%emt 0:01:00]}
1-0

[Event "ETCC Women 2013"]
[Site "Warsaw"]
[Date "2013.11.15"]
[Round "7"]
[White "Sikorova, Olga"]
[Black "Borsuk, Angela"]
[Result "1-0"]
[ECO "C41"]
[WhiteElo "2278"]
[BlackElo "2186"]
[PlyCount "65"]
[EventDate "2013.??.??"]
[EventCountry "POL"]
[WhiteTeam "Czech Republic"]
[BlackTeam "Israel"]
[WhiteTeamCountry "CZE"]
[BlackTeamCountry "ISR"]
[TimeControl "40/5400+30:1800+30"]

1. e4 {[%emt 0:00:00]} d6 {[%emt 0:00:00]} 2. d4 {[%emt 0:00:05]} Nf6 {[%emt 0:
00:00]} 3. Nc3 {[%emt 0:00:22]} e5 {[%emt 0:00:00]} 4. Nf3 {[%emt 0:04:05]}
Nbd7 {[%emt 0:00:37]} 5. Bc4 {[%emt 0:00:35]} Be7 {[%emt 0:00:40]} 6. O-O {
[%emt 0:00:27]} O-O {[%emt 0:00:06]} 7. a4 {[%emt 0:02:11]} c6 {[%emt 0:02:10]}
8. a5 {[%emt 0:01:01]} Rb8 {[%emt 0:08:34]} 9. Qe2 {[%emt 0:08:52]} exd4 {
[%emt 0:08:25]} 10. Nxd4 {[%emt 0:02:42]} Ne5 {[%emt 0:00:19]} 11. Bb3 {[%emt
0:03:47]} c5 {[%emt 0:09:45]} 12. Nf3 {[%emt 0:24:04]} Bg4 {[%emt 0:03:03]} 13.
Bf4 {[%emt 0:05:55]} Nxf3+ {[%emt 0:15:17]} 14. gxf3 {[%emt 0:00:26]} Be6 {
[%emt 0:00:06]} 15. Rfd1 {[%emt 0:04:19]} Nh5 {[%emt 0:09:29]} 16. Bg3 {[%emt
0:06:01]} Qc8 {[%emt 0:10:34]} 17. Nd5 {[%emt 0:05:46]} Bxd5 {[%emt 0:01:32]}
18. Rxd5 {[%emt 0:02:37]} Nxg3 {[%emt 0:01:32]} 19. hxg3 {[%emt 0:00:57]} b5 {
[%emt 0:05:19]} 20. axb6 axb6 {[%emt 0:04:00]} 21. Ra7 {[%emt 0:09:11]} Rb7 {
[%emt 0:03:35]} 22. Qa6 {[%emt 0:00:16]} Rxa7 {[%emt 0:00:55]} 23. Qxa7 {[%emt
0:00:01]} Bf6 {[%emt 0:02:38]} 24. Qxb6 {[%emt 0:03:43]} Bxb2 {[%emt 0:03:15]}
25. Rxd6 {[%emt 0:01:19]} Bd4 {[%emt 0:00:31]} 26. Kg2 {[%emt 0:05:15]} h6 {
[%emt 0:03:42]} 27. Qa7 {[%emt 0:02:42]} Bf6 {[%emt 0:03:32]} 28. Bd5 {[%emt 0:
00:40]} Be5 {[%emt 0:02:33]} 29. Rc6 {[%emt 0:00:45]} Qd8 {[%emt 0:01:17]} 30.
Qxc5 {[%emt 0:00:30]} Bb8 {[%emt 0:00:21]} 31. Bxf7+ {[%emt 0:04:15]} Kh8 {
[%emt 0:00:04]} 32. Be6 {[%emt 0:00:34]} Qd1 {[%emt 0:01:09]} 33. Qxf8+ {[%emt
0:00:07]} 1-0

[Event "ETCC Women 2013"]
[Site "Warsaw"]
[Date "2013.11.15"]
[Round "7"]
[White "Srebrnic, Ana"]
[Black "Ptacnikova, Lenka"]
[Result "1-0"]
[ECO "A04"]
[WhiteElo "2198"]
[BlackElo "2238"]
[PlyCount "97"]
[EventDate "2013.??.??"]
[EventCountry "POL"]
[WhiteTeam "Slovenia"]
[BlackTeam "Iceland"]
[WhiteTeamCountry "SLO"]
[BlackTeamCountry "ISL"]
[TimeControl "40/5400+30:1800+30"]

1. Nf3 {[%emt 0:00:24]} b5 {[%emt 0:00:02]} 2. e4 {[%emt 0:00:19]} Bb7 {[%emt
0:00:11]} 3. Bxb5 {[%emt 0:00:30]} Bxe4 {[%emt 0:00:05]} 4. O-O {[%emt 0:01:11]
} c6 {[%emt 0:00:55]} 5. Be2 {[%emt 0:00:57]} Nf6 {[%emt 0:00:26]} 6. d4 {
[%emt 0:01:18]} e6 {[%emt 0:02:20]} 7. c4 {[%emt 0:07:11]} Qc7 {[%emt 0:04:25]}
8. Nc3 {[%emt 0:02:33]} Bg6 {[%emt 0:00:05]} 9. c5 {[%emt 0:13:23]} Be7 {[%emt
0:05:07]} 10. Bg5 {[%emt 0:11:36]} h6 {[%emt 0:05:30]} 11. Bh4 {[%emt 0:03:49]}
Qb7 {[%emt 0:28:41]} 12. Qb3 {[%emt 0:06:59]} Qxb3 {[%emt 0:05:28]} 13. axb3 {
[%emt 0:04:06]} d6 {[%emt 0:16:30]} 14. b4 {[%emt 0:03:37]} O-O {[%emt 0:03:00]
} 15. Ra3 {[%emt 0:16:57]} Rd8 {[%emt 0:02:44]} 16. Rfa1 {[%emt 0:00:59]} Rd7 {
[%emt 0:00:13]} 17. Na4 {[%emt 0:04:57]} Bd8 {[%emt 0:05:49]} 18. cxd6 {[%emt
0:12:04]} Rxd6 {[%emt 0:00:52]} 19. Bg3 {[%emt 0:00:54]} Rd5 {[%emt 0:01:07]}
20. Bc4 {[%emt 0:00:25]} Rh5 {[%emt 0:01:11]} 21. Ne5 {[%emt 0:01:08]} Be4 {
[%emt 0:03:41]} 22. Nc5 {[%emt 0:01:12]} Bb6 {[%emt 0:00:22]} 23. Be2 {[%emt 0:
00:40]} Rf5 {[%emt 0:03:27]} 24. Nc4 {[%emt 0:01:03]} Bxc5 {[%emt 0:07:50]} 25.
bxc5 {[%emt 0:00:41]} Nbd7 {[%emt 0:00:39]} 26. f3 {[%emt 0:00:39]} Bd5 {[%emt
0:00:22]} 27. Nd6 {[%emt 0:00:21]} Rg5 {[%emt 0:00:42]} 28. Bf4 {[%emt 0:00:53]
} Rb8 {[%emt 0:01:22]} 29. Bxg5 {[%emt 0:01:09]} hxg5 {[%emt 0:00:04]} 30. Rb1
{[%emt 0:01:14]} Rb4 {[%emt 0:00:24]} 31. Rxa7 {[%emt 0:00:18]} Rxd4 {[%emt 0:
00:15]} 32. Ra8+ {[%emt 0:00:12]} Nf8 {[%emt 0:01:38]} 33. b4 {[%emt 0:01:15]}
g6 {[%emt 0:00:19]} 34. Rb2 {[%emt 0:00:47]} Kg7 {[%emt 0:00:12]} 35. b5 {
[%emt 0:00:52]} cxb5 {[%emt 0:00:05]} 36. Nxb5 {[%emt 0:00:04]} Rf4 {[%emt 0:
00:29]} 37. g3 {[%emt 0:00:41]} Rf5 {[%emt 0:00:17]} 38. Ra7 {[%emt 0:00:35]}
Bxf3 {[%emt 0:01:08]} 39. Bxf3 {[%emt 0:00:41]} Rxc5 {[%emt 0:00:11]} 40. Nd6 {
[%emt 0:00:00]} N8d7 {[%emt 0:00:00]} 41. Ne8+ {[%emt 0:03:02]} Nxe8 {[%emt 0:
03:23]} 42. Rxd7 {[%emt 0:01:26]} Nf6 {[%emt 0:00:07]} 43. Ra7 {[%emt 0:00:36]}
Ng8 {[%emt 0:01:18]} 44. g4 {[%emt 0:04:21]} Nh6 {[%emt 0:00:26]} 45. Kg2 {
[%emt 0:00:28]} Rc3 {[%emt 0:01:51]} 46. Rb5 {[%emt 0:02:53]} Rc2+ {[%emt 0:02:
12]} 47. Kg3 {[%emt 0:00:07]} Kf6 {[%emt 0:00:07]} 48. Raa5 {[%emt 0:02:38]}
Rc4 {[%emt 0:06:38]} 49. Rxg5 {[%emt 0:06:03]} 1-0

[Event "ETCC Women 2013"]
[Site "Warsaw"]
[Date "2013.11.15"]
[Round "7"]
[White "Stoeri, Laura"]
[Black "Saric, Kristina"]
[Result "1-0"]
[ECO "B51"]
[WhiteElo "2102"]
[BlackElo "2250"]
[PlyCount "61"]
[EventDate "2013.??.??"]
[EventCountry "POL"]
[WhiteTeam "Switzerland"]
[BlackTeam "Croatia"]
[WhiteTeamCountry "SUI"]
[BlackTeamCountry "CRO"]
[TimeControl "40/5400+30:1800+30"]

1. e4 {[%emt 0:00:00]} c5 {[%emt 0:00:00]} 2. Nf3 {[%emt 0:00:00]} d6 {[%emt 0:
00:00]} 3. Bb5+ {[%emt 0:00:00]} Nd7 {[%emt 0:00:21]} 4. O-O {[%emt 0:00:18]}
Ngf6 {[%emt 0:00:40]} 5. Re1 {[%emt 0:00:15]} a6 {[%emt 0:01:08]} 6. Bxd7+ {
[%emt 0:00:23]} Bxd7 {[%emt 0:02:29]} 7. c3 {[%emt 0:00:10]} e6 {[%emt 0:06:45]
} 8. d4 {[%emt 0:02:52]} cxd4 {[%emt 0:01:28]} 9. cxd4 {[%emt 0:00:13]} d5 {
[%emt 0:03:14]} 10. e5 {[%emt 0:04:01]} Ne4 {[%emt 0:01:48]} 11. Nbd2 {[%emt 0:
00:50]} Nxd2 {[%emt 0:01:22]} 12. Bxd2 {[%emt 0:00:20]} Be7 {[%emt 0:08:40]}
13. Rc1 {[%emt 0:00:59]} O-O {[%emt 0:03:47]} 14. Qb3 {[%emt 0:03:48]} Bc6 {
[%emt 0:05:14]} 15. Bb4 {[%emt 0:01:03]} Rc8 {[%emt 0:02:27]} 16. Rc3 {[%emt 0:
18:12]} Re8 {[%emt 0:07:23]} 17. Bxe7 {[%emt 0:02:05]} Qxe7 {[%emt 0:00:25]}
18. Rec1 {[%emt 0:06:12]} h6 {[%emt 0:04:46]} 19. h3 {[%emt 0:01:55]} Qd7 {
[%emt 0:04:04]} 20. Qc2 {[%emt 0:10:07]} Qd8 {[%emt 0:06:36]} 21. Qd2 {[%emt 0:
05:26]} Qd7 {[%emt 0:05:14]} 22. Nh2 {[%emt 0:04:29]} Qe7 {[%emt 0:08:57]} 23.
Ng4 {[%emt 0:04:07]} Kh7 {[%emt 0:02:21]} 24. Rf3 {[%emt 0:08:19]} Rg8 {[%emt
0:09:10]} 25. Rcc3 {[%emt 0:05:47]} Rc7 {[%emt 0:03:50]} 26. Rf6 {[%emt 0:04:
57]} Qf8 {[%emt 0:02:23]} 27. Rg3 {[%emt 0:00:28]} g6 {[%emt 0:05:14]} 28. Rgf3
{[%emt 0:01:17]} Rh8 {[%emt 0:01:30]} 29. Rxg6 {[%emt 0:10:01]} Kxg6 {[%emt 0:
01:24]} 30. Nf6 {[%emt 0:00:03]} Bb5 {[%emt 0:01:47]} 31. Qf4 {[%emt 0:00:26]}
1-0